bitfinex-derivatives/quotes_BTCF0:USTF0_20251109
["timestamp","ask_amount","ask_price","bid_price","bid_amount"]
[1762731805680,0.24524803,104740.0,104730.0,0.80166146]
[1762731805884,0.24524803,104740.0,104730.0,0.59520408]
[1762731806074,0.24524803,104740.0,104730.0,0.35652408]
[1762731806487,0.24524803,104740.0,104730.0,0.59520408]
[1762731806886,0.60604803,104740.0,104730.0,0.35652408]
[1762731807386,0.69162843,104740.0,104730.0,0.2721867]
[1762731807990,0.78712603,104740.0,104730.0,0.2721867]
[1762731808283,0.78712603,104740.0,104730.0,0.25664793]
[1762731808492,0.70154563,104740.0,104730.0,0.25664793]
[1762731808883,0.70154563,104740.0,104730.0,0.34101667]
[1762731809178,0.78591437,104740.0,104730.0,0.001]
[1762731809386,0.99004338,104740.0,104730.0,0.001]
[1762731809687,0.40187544,104730.0,104720.0,0.00014277]
[1762731809989,0.88463374,104730.0,104720.0,0.00014277]
[1762731810376,0.88463374,104730.0,104720.0,2.77e-06]
[1762731810580,0.3175158,104720.0,104710.0,0.0955213]
[1762731810784,0.88470874,104720.0,104710.0,0.0955213]
[1762731811083,0.317525,104710.0,104700.0,0.26569724]
[1762731811286,0.68052303,104710.0,104700.0,0.1813285]
[1762731811682,0.58499803,104710.0,104700.0,0.26569724]
[1762731811878,0.7048242,104710.0,104700.0,0.34921724]
[1762731812388,0.70488759,104710.0,104700.0,0.34921724]
[1762731812585,0.70488759,104710.0,104700.0,0.35521724]
[1762731812788,0.70588759,104710.0,104700.0,0.35521724]
[1762731812986,0.70588759,104710.0,104700.0,0.2708485]
[1762731813301,0.70588759,104710.0,104700.0,0.2728485]
[1762731813484,0.70588759,104710.0,104700.0,0.2698485]
[1762731814790,0.58599803,104710.0,104700.0,0.2698485]
[1762731815489,0.58599803,104710.0,104700.0,0.73616403]
[1762731815490,0.00319803,104710.0,104700.0,0.73616403]
[1762731815792,0.17594803,104710.0,104700.0,0.73616403]
[1762731816594,0.22519803,104710.0,104700.0,0.73616403]
[1762731816792,0.00319803,104710.0,104700.0,0.73616403]
[1762731817291,0.09615803,104710.0,104700.0,0.73616403]
[1762731818084,0.17594803,104710.0,104700.0,0.73616403]
[1762731818285,0.22519803,104710.0,104700.0,0.73616403]
[1762731819393,0.29370237,104710.0,104700.0,0.73616403]
[1762731819893,0.29370237,104710.0,104700.0,0.88356403]
[1762731820392,0.07170237,104710.0,104700.0,0.88356403]
[1762731821802,0.00319803,104710.0,104700.0,0.88356403]
[1762731822096,0.001,104710.0,104700.0,0.88356403]
[1762731822291,0.001,104710.0,104700.0,1.12232403]
[1762731822484,0.0686622,104720.0,104710.0,0.300595]
[1762731822794,0.00014277,104720.0,104710.0,0.76691053]
[1762731822996,0.59021,104740.0,104730.0,0.2648267]
[1762731823295,0.23160803,104740.0,104730.0,0.71560466]
[1762731823493,0.31723366,104740.0,104730.0,0.71560466]
[1762731825109,0.26157366,104740.0,104730.0,0.71760466]
[1762731826400,0.08662563,104740.0,104730.0,0.71760466]
[1762731826598,0.08662563,104740.0,104730.0,0.95628466]
[1762731827593,0.0902684,104750.0,104740.0,0.2579176]
[1762731827799,0.12453233,104750.0,104740.0,0.72423313]
[1762731828002,0.12673036,104750.0,104740.0,0.72423313]
[1762731828195,0.20249036,104750.0,104740.0,0.36343313]
[1762731828398,0.12453233,104750.0,104740.0,0.72423313]
[1762731828599,0.09016852,104750.0,104740.0,0.72423313]
[1762731828791,0.16792852,104750.0,104740.0,0.72523313]
[1762731828998,0.09416852,104750.0,104740.0,0.72523313]
[1762731829191,0.09416852,104750.0,104740.0,0.36443313]
[1762731829192,0.0866008,104750.0,104740.0,0.36443313]
[1762731829405,0.0846008,104750.0,104740.0,0.36443313]
[1762731829599,0.0846008,104750.0,104740.0,0.72623313]
[1762731829904,0.1644508,104750.0,104740.0,0.72623313]
[1762731830201,0.1624508,104750.0,104740.0,0.72523313]
[1762731830405,0.1634508,104750.0,104740.0,0.72923313]
[1762731830701,0.2116508,104750.0,104740.0,0.72923313]
[1762731831804,0.2116508,104750.0,104740.0,0.36843313]
[1762731832099,0.2116508,104750.0,104740.0,0.72923313]
[1762731834106,0.2116508,104750.0,104740.0,0.35637313]
[1762731834901,0.2116508,104750.0,104740.0,0.41950206]
[1762731835906,0.2116508,104750.0,104740.0,0.78030206]
[1762731841405,0.6679394,104750.0,104740.0,0.08496194]
[1762731841610,0.65797655,104750.0,104740.0,0.23720417]
[1762731841912,0.75346515,104750.0,104740.0,0.08932223]
[1762731842098,0.75346515,104750.0,104740.0,0.18481993]
[1762731842506,0.65797655,104750.0,104740.0,0.2363377]
[1762731842707,0.75346515,104750.0,104740.0,0.32065993]
[1762731842911,0.75346515,104750.0,104740.0,0.2363377]
[1762731843106,0.75346515,104750.0,104740.0,0.32065993]
[1762731844314,0.6679394,104750.0,104740.0,0.32065993]
[1762731845212,0.75338852,104750.0,104740.0,0.32065993]
[1762731845409,0.5724508,104750.0,104740.0,0.32065993]
[1762731845811,0.5724508,104750.0,104740.0,0.40498216]
[1762731846110,0.6679393,104750.0,104740.0,0.40498216]
[1762731846414,0.75345111,104750.0,104740.0,0.40498216]
[1762731848311,0.75345111,104750.0,104740.0,0.32065993]
[1762731850116,0.75345111,104750.0,104740.0,0.25273993]
[1762731850322,0.75345111,104750.0,104740.0,0.1004977]
[1762731850622,0.75345111,104750.0,104740.0,0.18481993]
[1762731850825,0.75345111,104750.0,104740.0,0.25273993]
[1762731851217,0.6679393,104750.0,104740.0,0.25273993]
[1762731852825,0.75368256,104750.0,104740.0,0.18481993]
[1762731853022,0.75368256,104750.0,104740.0,0.005]
[1762731853023,0.75226153,104750.0,104740.0,0.005]
[1762731853221,0.75226153,104750.0,104720.0,0.60229817]
[1762731853222,0.2921367,104730.0,104720.0,0.60229817]
[1762731853416,0.29433473,104730.0,104720.0,0.6866204]
[1762731854026,0.19882803,104730.0,104720.0,0.6866204]
[1762731854528,0.65513483,104730.0,104720.0,0.3258204]
[1762731854928,0.74087196,104730.0,104720.0,0.3258204]
[1762731855119,0.74187196,104730.0,104720.0,0.3308204]
[1762731855514,0.74187196,104730.0,104720.0,0.3328204]
[1762731855727,0.64636516,104730.0,104720.0,0.3328204]
[1762731855929,0.74087196,104730.0,104720.0,0.3258204]
[1762731856223,0.65613483,104730.0,104720.0,0.3298204]
[1762731856428,0.74187196,104730.0,104720.0,0.3298204]
[1762731857123,0.74187186,104730.0,104720.0,0.3298204]
[1762731861832,0.82619409,104730.0,104720.0,0.00414277]
[1762731862334,0.74045696,104730.0,104720.0,0.00414277]
[1762731862530,0.74045696,104730.0,104720.0,2.77e-06]
[1762731862738,0.2921459,104720.0,104710.0,0.16429766]
[1762731862935,0.77484063,104720.0,104710.0,0.07997543]
[1762731863236,0.77484063,104720.0,104710.0,0.16429766]
[1762731863638,0.77484063,104720.0,104710.0,0.23979766]
[1762731864235,0.77484063,104720.0,104710.0,0.31685766]
[1762731864631,0.77784063,104720.0,104710.0,0.31785766]
[1762731865139,0.77984063,104720.0,104710.0,0.31785766]
[1762731865633,0.77984063,104720.0,104710.0,0.23353543]
[1762731865834,0.77984063,104720.0,104710.0,0.31785766]
[1762731868738,0.41904063,104720.0,104710.0,0.31785766]
[1762731868935,0.77984063,104720.0,104710.0,0.31785766]
[1762731870140,0.77984103,104720.0,104710.0,0.31785766]
[1762731870841,0.77984103,104720.0,104710.0,0.31793529]
[1762731873143,0.77984103,104720.0,104710.0,0.16537529]
[1762731873345,0.77984103,104720.0,104710.0,0.08097543]
[1762731874144,0.77984103,104720.0,104710.0,0.13656543]
[1762731875245,0.77984103,104720.0,104710.0,0.12102342]
[1762731876246,0.77984103,104720.0,104710.0,0.20542328]
[1762731876747,0.18626,104710.0,104700.0,0.09567077]
[1762731876948,0.76448013,104710.0,104700.0,0.18007063]
[1762731877144,0.84999954,104710.0,104700.0,0.18007063]
[1762731877339,0.73030284,104710.0,104700.0,0.18007063]
[1762731877643,0.64478343,104710.0,104700.0,0.18007063]
[1762731877840,0.64578343,104710.0,104700.0,0.18007063]
[1762731878045,0.64678343,104710.0,104700.0,0.18107063]
[1762731881555,0.76648013,104710.0,104700.0,0.18107063]
[1762731882151,0.64678343,104710.0,104700.0,0.18107063]
[1762731882657,0.76648013,104710.0,104700.0,0.18107063]
[1762731883050,0.64678343,104710.0,104700.0,0.18107063]
[1762731883448,0.76648013,104710.0,104700.0,0.18107063]
[1762731885065,0.39584937,104710.0,104700.0,0.26547049]
[1762731885260,0.31015473,104710.0,104700.0,0.26547049]
[1762731885561,0.64678343,104710.0,104700.0,0.18107063]
[1762731885860,0.55125803,104710.0,104700.0,0.18107063]
[1762731886048,0.55125803,104710.0,104700.0,0.26547049]
[1762731886253,0.63695267,104710.0,104700.0,0.26547049]
[1762731886751,0.55125803,104710.0,104700.0,0.26547049]
[1762731886948,0.63695267,104710.0,104700.0,0.26547049]
[1762731887157,0.27615267,104710.0,104700.0,0.26547049]
[1762731887659,0.19045803,104710.0,104700.0,0.62627049]
[1762731888655,0.002,104710.0,104700.0,0.62627049]
[1762731888850,0.19777464,104720.0,104710.0,0.0955255]
[1762731889049,0.26390267,104720.0,104710.0,0.54072536]
[1762731889957,0.26790267,104720.0,104710.0,0.54172536]
[1762731890758,0.36341897,104720.0,104710.0,0.0965255]
[1762731890954,0.63852433,104720.0,104710.0,0.0965255]
[1762731891155,0.26790267,104720.0,104710.0,0.18092536]
[1762731891762,0.26490267,104720.0,104710.0,0.17992536]
[1762731891962,0.26590267,104720.0,104710.0,0.18092536]
[1762731893358,0.18020803,104720.0,104710.0,0.18092536]
[1762731893560,0.39542103,104720.0,104710.0,0.18092536]
[1762731893959,0.27572433,104720.0,104710.0,0.18092536]
[1762731894262,0.39542103,104720.0,104710.0,0.18092536]
[1762731895765,0.29990473,104720.0,104710.0,0.18092536]
[1762731896665,0.29990473,104720.0,104710.0,0.16538471]
[1762731897961,0.18020803,104720.0,104710.0,0.16538471]
[1762731900766,0.27572423,104720.0,104710.0,0.001]
[1762731901068,0.27572423,104720.0,104700.0,0.45647677]
[1762731901069,0.2661453,104710.0,104700.0,0.00014277]
[1762731901253,0.74898862,104710.0,104700.0,0.18007703]
[1762731901459,0.74898862,104710.0,104700.0,0.00014277]
[1762731901965,0.74898862,104710.0,104700.0,2.77e-06]
[1762731901966,0.83338848,104710.0,104700.0,2.77e-06]
[1762731902156,0.2661636,104690.0,104680.0,0.17995086]
[1762731902356,0.74900692,104690.0,104680.0,0.17995086]
[1762731902758,0.53361803,104690.0,104680.0,0.17995086]
[1762731903361,0.53361803,104690.0,104680.0,0.18195086]
[1762731903563,0.62916163,104690.0,104680.0,0.18195086]
[1762731903870,0.53361803,104690.0,104680.0,0.097551]
[1762731904070,0.62916163,104690.0,104680.0,0.18195086]
[1762731904265,0.17281803,104690.0,104680.0,0.18195086]
[1762731904662,0.53361803,104690.0,104680.0,0.18195086]
[1762731905372,0.17281803,104690.0,104680.0,0.18195086]
[1762731905570,0.17381803,104690.0,104680.0,0.18595086]
[1762731906271,0.25929878,104690.0,104680.0,0.18595086]
[1762731907367,0.71564238,104690.0,104680.0,0.101551]
[1762731907562,0.25929878,104690.0,104680.0,0.18595086]
[1762731909270,0.62009878,104690.0,104680.0,0.18595086]
[1762731909469,0.25929878,104690.0,104680.0,0.18595086]
[1762731910662,0.62009878,104690.0,104680.0,0.18595086]
[1762731910862,0.25929878,104690.0,104680.0,0.18595086]
[1762731911872,0.62009878,104690.0,104680.0,0.18595086]
[1762731912172,0.25929878,104690.0,104680.0,0.18595086]
[1762731912473,0.62009878,104690.0,104680.0,0.18595086]
[1762731912674,0.71564238,104690.0,104680.0,0.18595086]
[1762731912871,0.62009878,104690.0,104680.0,0.18595086]
[1762731913171,0.25929878,104690.0,104680.0,0.18595086]
[1762731913671,0.62009878,104690.0,104680.0,0.18595086]
[1762731914075,0.78381968,104690.0,104680.0,0.18595086]
[1762731914273,0.69833893,104690.0,104680.0,0.18595086]
[1762731915368,0.24199533,104690.0,104680.0,0.18595086]
[1762731915572,0.60279533,104690.0,104680.0,0.18595086]
[1762731915765,0.24199533,104690.0,104680.0,0.18595086]
[1762731916072,0.25929878,104690.0,104680.0,0.18595086]
[1762731916968,0.62009878,104690.0,104680.0,0.18595086]
[1762731917177,0.62009878,104690.0,104680.0,0.17040545]
[1762731917374,0.17381803,104690.0,104680.0,0.17040545]
[1762731918075,0.2590067,104690.0,104680.0,0.17040545]
[1762731918278,0.17381803,104690.0,104680.0,0.16740545]
[1762731918778,0.17381803,104690.0,104680.0,0.08100559]
[1762731918967,0.17381803,104690.0,104680.0,0.16540545]
[1762731919876,0.29366332,104690.0,104680.0,0.16540545]
[1762731920672,0.65446332,104690.0,104680.0,0.16540545]
[1762731921086,0.29366332,104690.0,104680.0,0.16540545]
[1762731921676,0.65446332,104690.0,104680.0,0.16540545]
[1762731921880,0.75000692,104690.0,104680.0,0.16540545]
[1762731922088,0.29366332,104690.0,104680.0,0.16540545]
[1762731924587,0.37668482,104690.0,104680.0,0.61060531]
[1762731924889,0.25683953,104690.0,104680.0,0.61060531]
[1762731925089,0.25683953,104690.0,104680.0,0.52620545]
[1762731925290,0.17162,104690.0,104680.0,0.52620545]
[1762731925492,0.17381803,104690.0,104680.0,0.52620545]
[1762731926290,0.12730756,104690.0,104680.0,0.52620545]
[1762731926490,0.18909756,104690.0,104680.0,0.52520545]
[1762731926787,0.19009756,104690.0,104680.0,0.52720545]
[1762731926991,0.16485803,104690.0,104680.0,0.52720545]
[1762731927291,0.25007756,104690.0,104680.0,0.52720545]
[1762731927492,0.25007756,104690.0,104680.0,0.52820545]
[1762731929592,0.25007756,104690.0,104680.0,0.61260531]
[1762731929893,0.25007756,104690.0,104680.0,0.76700545]
[1762731930785,0.25007756,104690.0,104680.0,0.52820545]
[1762731930982,0.24787953,104690.0,104680.0,0.93577664]
[1762731931389,0.24787953,104690.0,104680.0,1.08317664]
[1762731931596,0.10268,104690.0,104680.0,0.84437664]
[1762731931796,0.17097283,104690.0,104680.0,1.08317664]
[1762731932294,0.09901277,104700.0,104690.0,0.2170936]
[1762731932497,0.12291277,104700.0,104690.0,0.7466743]
[1762731932694,0.1251108,104700.0,104690.0,0.7466743]
[1762731933095,0.1608108,104700.0,104690.0,0.7466743]
[1762731933491,0.1608108,104700.0,104690.0,0.7476743]
[1762731933683,0.1618108,104700.0,104690.0,0.7476743]
[1762731937290,0.1618108,104700.0,104690.0,0.8950743]
[1762731938992,0.06393277,104700.0,104690.0,0.8950743]
[1762731939194,0.12391277,104700.0,104690.0,0.8950743]
[1762731939893,0.15961277,104700.0,104690.0,0.8950743]
[1762731940095,0.1618108,104700.0,104690.0,0.8950743]
[1762731942496,0.22999381,104700.0,104690.0,0.8950743]
[1762731945504,0.19429381,104700.0,104690.0,0.8950743]
[1762731946298,0.13211578,104700.0,104690.0,0.8950743]
[1762731946503,0.06932578,104700.0,104690.0,0.8950743]
[1762731946897,0.13211578,104700.0,104690.0,0.8950743]
[1762731947097,0.19209578,104700.0,104690.0,0.8950743]
[1762731947798,0.06932578,104700.0,104690.0,1.21826465]
[1762731948006,0.08521953,104710.0,104700.0,0.2344945]
[1762731948205,0.08521953,104710.0,104700.0,0.84846555]
[1762731948499,0.14180953,104710.0,104700.0,0.84846555]
[1762731948698,0.19891953,104710.0,104700.0,0.84846555]
[1762731949498,0.19891953,104710.0,104700.0,0.84946555]
[1762731950099,0.23564756,104710.0,104700.0,0.84946555]
[1762731950307,0.23564756,104710.0,104700.0,0.7374852]
[1762731950902,0.23664756,104710.0,104700.0,0.7394852]
[1762731952105,0.23664756,104710.0,104700.0,0.5707045]
[1762731952304,0.23664756,104710.0,104700.0,0.7394852]
[1762731952701,0.23664756,104710.0,104700.0,0.72394464]
[1762731953298,0.15142803,104710.0,104700.0,0.72394464]
[1762731954406,0.27127332,104710.0,104700.0,0.87134464]
[1762731957308,0.35671596,104710.0,104700.0,0.87134464]
[1762731957710,0.15142803,104710.0,104700.0,0.87134464]
[1762731957909,0.23687079,104710.0,104700.0,0.95573499]
[1762731958110,0.23687089,104710.0,104700.0,0.87134464]
[1762731958702,0.40075213,104710.0,104700.0,0.28827394]
[1762731958906,0.33134368,104710.0,104700.0,0.33032485]
[1762731959107,0.15142803,104710.0,104700.0,0.33032485]
[1762731959308,0.36679872,104710.0,104700.0,0.33032485]
[1762731959613,0.15142803,104710.0,104700.0,0.41844485]
[1762731959812,0.15142803,104710.0,104700.0,0.5028352]
[1762731960205,0.23688071,104710.0,104700.0,0.5028352]
[1762731960609,0.15142803,104710.0,104700.0,0.5028352]
[1762731960804,0.23687721,104710.0,104700.0,0.5028352]
[1762731961004,0.15142803,104710.0,104700.0,0.5028352]
[1762731961205,0.15142803,104710.0,104700.0,0.8636352]
[1762731961405,0.15142803,104710.0,104700.0,0.5028352]
[1762731963212,0.15142803,104710.0,104700.0,0.48729325]
[1762731963402,0.15142803,104710.0,104700.0,0.84809325]
[1762731963606,0.24695343,104710.0,104700.0,0.48729325]
[1762731964114,0.24695343,104710.0,104700.0,0.39917325]
[1762731964411,0.24695343,104710.0,104700.0,0.44323325]
[1762731964618,0.15142803,104710.0,104700.0,0.48729325]
[1762731965610,0.24695343,104710.0,104700.0,0.48729325]
[1762731966809,0.27127332,104710.0,104700.0,0.48729325]
[1762731967816,0.15142803,104710.0,104700.0,0.48729325]
[1762731968206,0.27127332,104710.0,104700.0,0.48729325]
[1762731968609,0.36679872,104710.0,104700.0,0.39917325]
[1762731969408,0.36679872,104710.0,104700.0,0.44323325]
[1762731969814,0.27127332,104710.0,104700.0,0.44323325]
[1762731970015,0.27127332,104710.0,104700.0,0.48729325]
[1762731973116,0.27127332,104710.0,104700.0,0.47175135]
[1762731974713,0.27127332,104710.0,104700.0,0.83255135]
[1762731978921,0.2410845,104700.0,104690.0,0.18380637]
[1762731979116,0.60408253,104700.0,104690.0,0.18007672]
[1762731979511,0.60408253,104700.0,104690.0,0.22413672]
[1762731980620,0.60508253,104700.0,104690.0,0.09053312]
[1762731980820,0.69025861,104700.0,104690.0,0.18607672]
[1762731981207,0.69025861,104700.0,104690.0,0.18507672]
[1762731981712,0.59472411,104700.0,104690.0,0.18507672]
[1762731981913,0.69025861,104700.0,104690.0,0.18507672]
[1762731982725,0.69025861,104700.0,104690.0,0.18307672]
[1762731983017,0.80871939,104700.0,104690.0,0.0955436]
[1762731983522,0.2410937,104690.0,104680.0,0.17993745]
[1762731983723,0.60409173,104690.0,104680.0,0.17993745]
[1762731984223,0.72333824,104690.0,104680.0,0.23533745]
[1762731984632,0.62779454,104690.0,104680.0,0.23533745]
[1762731984922,0.72333824,104690.0,104680.0,0.28989745]
[1762731985415,0.72333824,104690.0,104680.0,0.3762878]
[1762731985613,0.72433824,104690.0,104680.0,0.2105071]
[1762731985823,0.60509173,104690.0,104680.0,0.29489745]
[1762731986519,0.60509173,104690.0,104680.0,0.29289745]
[1762731986726,0.60509173,104690.0,104680.0,0.23633745]
[1762731986916,0.60509173,104690.0,104680.0,0.18093745]
[1762731987115,0.72433824,104690.0,104680.0,0.18093745]
[1762731990324,0.60509173,104690.0,104680.0,0.18093745]
[1762731990918,0.60509173,104690.0,104680.0,0.0965471]
[1762731991415,0.60509173,104690.0,104680.0,0.001]
[1762731991826,0.60509173,104690.0,104680.0,0.0965528]
[1762731993126,0.50551803,104690.0,104680.0,0.30295411]
[1762731993424,0.57349073,104690.0,104680.0,0.30295411]
[1762731994024,0.57349073,104690.0,104680.0,0.28649411]
[1762731997931,0.50551803,104690.0,104680.0,0.28649411]
[1762731998130,0.57346462,104690.0,104680.0,0.28649411]
[1762731998431,0.57346151,104690.0,104680.0,0.28649411]
[1762731998626,0.50551803,104690.0,104680.0,0.28649411]
[1762732001232,0.11398803,104690.0,104680.0,0.64718938]
[1762732001528,0.11398803,104690.0,104680.0,0.28638938]
[1762732001935,0.11398803,104690.0,104680.0,0.64718938]
[1762732002436,0.14471803,104690.0,104680.0,0.28638938]
[1762732002630,0.14471803,104690.0,104680.0,0.64718938]
[1762732004430,0.24026173,104690.0,104680.0,0.64718938]
[1762732004634,0.32526851,104690.0,104680.0,0.39026553]
[1762732004836,0.22972481,104690.0,104680.0,0.39026553]
[1762732006233,0.14471803,104690.0,104680.0,0.39026553]
[1762732006434,0.24026163,104690.0,104680.0,0.39026553]
[1762732007542,0.35950814,104690.0,104680.0,0.39026553]
[1762732010340,0.24026163,104690.0,104680.0,0.39026553]
[1762732012145,0.68595908,104690.0,104680.0,0.39026553]
[1762732012336,0.68595908,104690.0,104680.0,0.20032422]
[1762732012536,0.60106163,104690.0,104680.0,0.24890422]
[1762732013741,0.60106163,104690.0,104680.0,0.33335553]
[1762732013936,0.14471803,104690.0,104680.0,0.38198553]
[1762732014439,0.22817171,104690.0,104680.0,0.41049553]
[1762732014946,0.23891163,104690.0,104680.0,0.38198553]
[1762732015146,0.35815814,104690.0,104680.0,0.38198553]
[1762732015340,0.35815814,104690.0,104680.0,0.36644007]
[1762732015639,0.26261454,104690.0,104680.0,0.36644007]
[1762732016447,0.26261454,104690.0,104680.0,0.24712392]
[1762732017049,0.26261454,104690.0,104680.0,0.27337392]
[1762732018151,0.31801598,104690.0,104680.0,0.63417392]
[1762732018353,0.19876947,104690.0,104680.0,0.63417392]
[1762732020549,0.18916947,104690.0,104680.0,0.63417392]
[1762732021154,0.21593947,104690.0,104680.0,0.63417392]
[1762732021355,0.31148337,104690.0,104680.0,0.54246131]
[1762732021554,0.58750193,104690.0,104680.0,0.27721431]
[1762732021751,0.58750193,104690.0,104680.0,0.18166131]
[1762732021950,0.70674844,104690.0,104680.0,0.18166131]
[1762732022545,0.70674844,104690.0,104680.0,0.27721431]
[1762732022751,0.61120454,104690.0,104680.0,0.27721431]
[1762732022949,0.25040454,104690.0,104680.0,0.27721431]
[1762732023251,0.70674844,104690.0,104680.0,0.27721431]
[1762732024055,0.25040454,104690.0,104680.0,0.27721431]
[1762732024453,0.70674844,104690.0,104680.0,0.27721431]
[1762732025351,0.70674844,104690.0,104680.0,0.26166885]
[1762732027362,0.77442417,104690.0,104680.0,0.08445131]
[1762732027557,0.216253,104680.0,104670.0,0.27436208]
[1762732027856,0.57925103,104680.0,104670.0,0.27436208]
[1762732028767,0.57925103,104680.0,104670.0,0.27736208]
[1762732028953,0.58025103,104680.0,104670.0,0.27936208]
[1762732029353,0.12389803,104680.0,104670.0,0.27936208]
[1762732029554,0.48469803,104680.0,104670.0,0.27936208]
[1762732029846,0.12389803,104680.0,104670.0,0.27936208]
[1762732031063,0.58025103,104680.0,104670.0,0.27936208]
[1762732032565,0.69949754,104680.0,104670.0,0.27936208]
[1762732032751,0.24314454,104680.0,104670.0,0.27936208]
[1762732034459,0.24314454,104680.0,104670.0,0.72461339]
[1762732034760,0.24314454,104680.0,104670.0,0.74160339]
[1762732034959,0.09712803,104680.0,104670.0,0.74160339]
[1762732035159,0.12389803,104680.0,104670.0,0.64016208]
[1762732035461,0.12389803,104680.0,104670.0,0.62461647]
[1762732035662,0.12389803,104680.0,104670.0,0.70906778]
[1762732036854,0.12389803,104680.0,104670.0,0.82838393]
[1762732037168,0.20844198,104680.0,104670.0,0.84537393]
[1762732037564,0.18167198,104680.0,104670.0,0.84537393]
[1762732037865,0.08554395,104680.0,104670.0,0.84537393]
[1762732038260,0.06864836,104680.0,104670.0,0.84537393]
[1762732039563,0.17847395,104690.0,104680.0,0.2186328]
[1762732039765,0.17847395,104690.0,104680.0,0.66388411]
[1762732039968,0.09393,104690.0,104680.0,0.66388411]
[1762732040166,0.17847395,104690.0,104680.0,0.66388411]
[1762732041169,0.18167198,104690.0,104680.0,0.66488411]
[1762732042167,0.13441198,104690.0,104680.0,0.66488411]
[1762732042669,0.18167198,104690.0,104680.0,0.78420026]
[1762732043270,0.09712803,104690.0,104680.0,0.78420026]
[1762732044764,0.12389803,104690.0,104680.0,0.78420026]
[1762732046871,0.09712803,104690.0,104680.0,0.78420026]
[1762732047166,0.001,104690.0,104680.0,0.78420026]
[1762732047369,0.08554395,104690.0,104680.0,0.78420026]
[1762732048868,0.04887803,104690.0,104680.0,0.78420026]
[1762732049170,0.17925198,104690.0,104680.0,0.78420026]
[1762732053070,0.17925198,104690.0,104680.0,0.95295513]
[1762732054577,0.09470803,104690.0,104680.0,0.95295513]
[1762732055878,0.16233128,104690.0,104680.0,0.95295513]
[1762732057577,0.09470803,104690.0,104680.0,0.95295513]
[1762732058670,0.162358,104690.0,104680.0,0.95295513]
[1762732059378,0.09470803,104690.0,104680.0,0.95295513]
[1762732059776,0.16236137,104690.0,104680.0,0.95295513]
[1762732060080,0.16236217,104690.0,104680.0,0.95295513]
[1762732061373,0.09470803,104690.0,104680.0,0.95295513]
[1762732061583,0.08468672,104700.0,104690.0,0.11146]
[1762732061878,0.23752651,104720.0,104710.0,0.1885554]
[1762732062078,0.23972454,104720.0,104710.0,0.34181861]
[1762732062280,0.12047803,104720.0,104710.0,0.70261861]
[1762732063483,0.12147803,104720.0,104710.0,0.34181861]
[1762732063672,0.12347803,104720.0,104710.0,0.34281861]
[1762732064177,0.24272454,104720.0,104710.0,0.34281861]
[1762732064577,0.12347803,104720.0,104710.0,0.34281861]
[1762732064980,0.24272454,104720.0,104710.0,0.34281861]
[1762732065875,0.12347803,104720.0,104710.0,0.70361861]
[1762732066579,0.24272454,104720.0,104710.0,0.34281861]
[1762732067081,0.24272454,104720.0,104710.0,0.70361861]
[1762732067474,0.12347803,104720.0,104710.0,0.70361861]
[1762732067676,0.12347803,104720.0,104710.0,0.71477861]
[1762732068076,0.09670803,104720.0,104710.0,0.71477861]
[1762732069078,0.09670803,104720.0,104710.0,0.35397861]
[1762732070284,0.09670803,104720.0,104710.0,0.71477861]
[1762732070484,0.16452136,104720.0,104710.0,0.71477861]
[1762732070787,0.09670803,104720.0,104710.0,0.71477861]
[1762732071087,0.003,104720.0,104710.0,0.71477861]
[1762732071284,0.08777168,104720.0,104710.0,0.71477861]
[1762732072083,0.08777168,104720.0,104710.0,0.83409476]
[1762732072391,0.003,104720.0,104710.0,0.83409476]
[1762732073087,0.08777168,104720.0,104710.0,0.83409476]
[1762732073286,0.07078701,104720.0,104710.0,0.83409476]
[1762732074181,0.15421701,104720.0,104710.0,0.66529064]
[1762732074581,0.15641504,104720.0,104710.0,0.83409476]
[1762732077390,0.11358803,104720.0,104710.0,0.3777327]
[1762732077578,0.18137819,104720.0,104710.0,0.3777327]
[1762732077782,0.56990433,104720.0,104710.0,0.17843206]
[1762732077983,0.65467601,104720.0,104710.0,0.17843206]
[1762732078186,0.65467601,104720.0,104710.0,0.13303206]
[1762732078492,0.56990433,104720.0,104710.0,0.13303206]
[1762732078700,0.56990433,104720.0,104710.0,0.17397206]
[1762732079094,0.56990433,104720.0,104710.0,0.26949746]
[1762732081293,0.56990433,104720.0,104710.0,0.21301593]
[1762732081597,0.68915084,104720.0,104710.0,0.25395593]
[1762732082088,0.7735529,104720.0,104710.0,0.001]
[1762732082283,0.7735529,104720.0,104710.0,0.0965254]
[1762732082685,0.7735529,104720.0,104710.0,0.001]
[1762732083297,0.2031755,104710.0,104700.0,0.29939528]
[1762732083487,0.56617353,104710.0,104700.0,0.21499322]
[1762732083686,0.56617353,104710.0,104700.0,0.09567707]
[1762732083888,0.65057559,104710.0,104700.0,0.09567707]
[1762732084288,0.56617353,104710.0,104700.0,0.00014277]
[1762732084494,0.56717353,104710.0,104700.0,0.09667737]
[1762732085095,0.56717353,104710.0,104700.0,0.26506943]
[1762732085396,0.56717353,104710.0,104700.0,0.18107943]
[1762732085696,0.56817353,104710.0,104700.0,0.18107943]
[1762732085990,0.56817353,104710.0,104700.0,0.22412943]
[1762732086196,0.56817353,104710.0,104700.0,0.18107943]
[1762732086594,0.68942004,104710.0,104700.0,0.18107943]
[1762732088092,0.59389454,104710.0,104700.0,0.26506943]
[1762732088291,0.59389454,104710.0,104700.0,0.34947149]
[1762732088493,0.68941994,104710.0,104700.0,0.34947149]
[1762732089497,0.59389454,104710.0,104700.0,0.34947149]
[1762732089797,0.68941994,104710.0,104700.0,0.34947149]
[1762732090596,0.59389454,104710.0,104700.0,0.34947149]
[1762732091192,0.59389454,104710.0,104700.0,0.33392825]
[1762732092699,0.68941994,104710.0,104700.0,0.33392825]
[1762732093495,0.68941994,104710.0,104700.0,0.0965346]
[1762732093800,0.68941994,104710.0,104700.0,0.26492666]
[1762732094603,0.23309454,104710.0,104700.0,0.34932872]
[1762732094898,0.23309454,104710.0,104700.0,0.80179078]
[1762732094899,0.08888803,104710.0,104700.0,0.80179078]
[1762732095094,0.13131237,104710.0,104700.0,0.80179078]
[1762732095402,0.15647515,104710.0,104700.0,0.71738872]
[1762732096495,0.18143515,104710.0,104700.0,0.71012872]
[1762732097397,0.18143515,104710.0,104700.0,0.34932872]
[1762732097704,0.63776055,104710.0,104700.0,0.34932872]
[1762732097901,0.18143515,104710.0,104700.0,0.34932872]
[1762732098489,0.47464803,104710.0,104700.0,0.34932872]
[1762732098803,0.54227358,104710.0,104700.0,0.34932872]
[1762732098999,0.63779898,104710.0,104700.0,0.34932872]
[1762732099703,0.57017343,104710.0,104700.0,0.34932872]
[1762732101705,0.47464803,104710.0,104700.0,0.34932872]
[1762732101907,0.57017343,104710.0,104700.0,0.34932872]
[1762732102203,0.57017343,104710.0,104700.0,0.26492666]
[1762732102505,0.57017343,104710.0,104700.0,0.22398666]
[1762732103205,0.57017343,104710.0,104700.0,0.20844378]
[1762732103400,0.68941994,104710.0,104700.0,0.20844378]
[1762732104207,0.68941994,104710.0,104700.0,0.24843378]
[1762732104507,0.68941994,104710.0,104700.0,0.33283584]
[1762732104908,0.68941994,104710.0,104700.0,0.24843378]
[1762732106907,0.68941994,104710.0,104700.0,0.17993666]